fUST/lending_fUST_20251121
["ID","MTS","AMOUNT","RATE_DAILY","PERIOD"]
[394529350,1763669440541,-735.04498895,0.00013326,2]
[394529351,1763669440551,-735.04498895,0.00013326,2]
[394529352,1763669440560,-735.04498895,0.00013326,2]
[394529353,1763669440570,-735.04498895,0.00013326,2]
[394529354,1763669440580,-500.0,0.00013326,2]
[394529355,1763669440589,-735.04498895,0.00013326,2]
[394529356,1763669440599,-500.0,0.00013326,2]
[394529357,1763669440609,-500.0,0.00013326,2]
[394529358,1763669440619,-500.0,0.00013326,2]
[394529359,1763669440628,-500.0,0.00013326,2]
[394529360,1763669440637,-482.22379104,0.00013326,2]
[394529361,1763669440647,-735.04498895,0.00013326,2]
[394529362,1763669440656,-500.0,0.00013326,2]
[394529363,1763669440666,-500.0,0.00013326,2]
[394529364,1763669440675,-735.04498895,0.00013326,2]
[394529365,1763669440684,-500.0,0.00013326,2]
[394529366,1763669440694,-735.04498895,0.00013326,2]
[394529367,1763669440703,-300.0,0.00013326,2]
[394529368,1763669440713,-50000.0,0.00013327,2]
[394529369,1763669440722,-600.0,0.00013592,2]
[394529370,1763669440733,-972.0715421,0.00013656,2]
[394529371,1763669440742,-500.0,0.00013673,2]
[394529372,1763669440751,-500.0,0.00013673,2]
[394529373,1763669440760,-500.0,0.00013673,2]
[394529374,1763669440769,-577.99288324,0.00013673,2]
[394529375,1763669440778,-564.44684674,0.00013673,2]
[394529376,1763669440788,-500.0,0.00013673,2]
[394529377,1763669440797,-500.0,0.00013673,2]
[394529378,1763669440806,-500.0,0.00013673,2]
[394529379,1763669440815,-500.0,0.00013673,2]
[394529380,1763669440825,-647.82104285,0.00013673,2]
[394529381,1763669440835,-500.0,0.00013673,2]
[394529382,1763669440844,-500.0,0.00013673,2]
[394529383,1763669440853,-500.0,0.00013673,2]
[394529384,1763669440862,-1000.0,0.0001369,2]
[394529385,1763669440872,-1000.0,0.0001369,2]
[394529386,1763669440881,-1000.0,0.0001369,2]
[394529387,1763669440890,-1000.0,0.0001369,2]
[394529388,1763669440899,-1000.0,0.0001369,2]
[394529389,1763669440907,-951.83771131,0.0001369,2]
[394529390,1763669441006,-48.16228869,0.0001369,2]
[394529391,1763669441015,-1000.0,0.0001369,2]
[394529392,1763669441024,-1000.0,0.0001369,2]
[394529393,1763669441033,-1000.0,0.0001369,2]
[394529394,1763669441044,-196.67205252,0.0001369,2]
[394529395,1763669442510,-3e-08,0.0001369,2]
[394529396,1763669442532,-576.57381697,0.0001369,2]
[394529397,1763669442544,-226.75413048,0.0001369,2]
[394529398,1763669442554,-1000.0,0.0001369,2]
[394529399,1763669442563,-328.34547761,0.0001369,2]
[394529400,1763669442573,-500.0,0.00013698,2]
[394529401,1763669442582,-500.0,0.00013698,2]
[394529402,1763669442591,-500.0,0.00013698,2]
[394529403,1763669442601,-500.0,0.00013698,2]
[394529404,1763669442610,-500.0,0.00013698,2]
[394529405,1763669442619,-500.0,0.00013698,2]
[394529406,1763669442628,-500.0,0.00013698,2]
[394529407,1763669442638,-500.0,0.00013698,2]
[394529408,1763669442647,-532.7368205,0.00013698,2]
[394529409,1763669442656,-500.0,0.00013698,2]
[394529410,1763669442666,-500.0,0.00013698,2]
[394529411,1763669442676,-500.0,0.00013698,2]
[394529412,1763669442686,-623.9818945,0.00013698,2]
[394529413,1763669442696,-500.0,0.00013698,2]
[394529414,1763669442705,-500.0,0.00013698,2]
[394529415,1763669442715,-500.0,0.00013698,2]
[394529416,1763669442724,-203.9694317,0.00013698,2]
[394529417,1763669442734,-23286.54,0.00013698,2]
[394529418,1763669442742,-10108.84564521,0.00013698,2]
[394529436,1763669444685,-11165.18155705,0.00013698,2]
[394529437,1763669444708,-35.03351548,0.00013698,2]
[394529441,1763669455325,-282.99221084,0.00013698,2]
[394529442,1763669455338,-1694.48707142,0.00013698,2]
[394529443,1763669455348,-23286.54,0.00013698,2]
[394529444,1763669455360,-23286.54,0.00013698,2]
[394529445,1763669455370,-23286.54,0.00013698,2]
[394529446,1763669455381,-0.59525379,0.00013698,2]
[394529447,1763669455393,-23285.94474621,0.00013698,2]
[394529448,1763669455403,-1545.04327713,0.00013698,2]
[394529449,1763669455433,168.11384601,6.717e-05,2]
[394529450,1763669455451,-7116.10914602,0.00013698,2]
[394529473,1763669536056,1339.62534415,9.486e-05,2]
[394529651,1763669827054,-1000.0,0.00019227,7]
[394529652,1763669827082,-1000.0,0.00019227,7]
[394529653,1763669827108,-2000.0,0.0002,7]
[394529654,1763669827135,-1000.0,0.0002115,7]
[394529655,1763669827164,-1000.0,0.0002115,7]
[394529656,1763669827193,-579.0,0.0002115,7]
[394529657,1763669827293,-170.73816469,0.00021597,30]
[394529658,1763669827323,-293.42384258,0.00021597,30]
[394529659,1763669827348,-261.69,0.00022,14]
[394529660,1763669827373,-2038.44,0.00022,7]
[394529661,1763669827399,-236.21815818,0.00022849,7]
[394529662,1763669827425,-282.93,0.00022986,14]
[394529663,1763669827452,-194.28054984,0.00023162,7]
[394529664,1763669827476,-277.39161374,0.00023162,7]
[394529665,1763669827502,-308.54220305,0.00023162,7]
[394529666,1763669827528,-776.34507716,0.00023162,7]
[394529667,1763669827553,-407.37781925,0.00023162,7]
[394529668,1763669827580,-1108.4568885,0.00023162,7]
[394529669,1763669827609,-484.0,0.00023265,7]
[394529670,1763669827634,-151.0,0.000234,6]
[394529671,1763669827660,-1232.93464338,0.00024175,7]
[394529672,1763669827684,-38000.0,0.0002464,7]
[394529673,1763669827711,-38000.0,0.00024649,7]
[394529674,1763669827753,-38000.0,0.00024658,7]
[394529675,1763669827779,-1627.88176573,0.00024669,7]
[394529676,1763669827804,-38000.0,0.00024738,7]
[394529677,1763669827830,-38000.0,0.00024747,7]
[394529678,1763669827868,-38000.0,0.00024756,7]
[394529679,1763669827908,-38000.0,0.00024765,7]
[394529680,1763669827953,-35963.48180206,0.00024771,7]
[394529681,1763669827994,-38000.0,0.00024774,7]
[394529682,1763669828031,-38000.0,0.00024782,7]
[394529683,1763669828074,-38000.0,0.00024791,7]
[394529684,1763669828111,-38000.0,0.000248,7]
[394529685,1763669828151,-2038.44,0.000248,7]
[394529687,1763669828187,-38000.0,0.00024802,7]
[394529688,1763669828225,-151.0,0.00024802,7]
[394529689,1763669828263,-151.0,0.00024802,7]
[394529690,1763669828303,-203.747742,0.00024802,7]
[394529691,1763669828340,-151.0,0.00024802,7]
[394529692,1763669828377,-151.0,0.00024802,7]
[394529693,1763669828404,-151.0,0.00024802,7]
[394529694,1763669828430,-151.0,0.00024802,7]
[394529695,1763669828457,-151.0,0.00024802,7]
[394529696,1763669828485,-151.0,0.00024802,7]
[394529697,1763669828513,-151.0,0.00024802,7]
[394529698,1763669828543,-151.0,0.00024802,7]
[394529699,1763669828572,-500.0,0.00024802,7]
[394529700,1763669828767,-151.0,0.00024802,7]
[394529701,1763669828797,-500.0,0.00024802,7]
[394529702,1763669828829,-500.0,0.00024802,7]
[394529703,1763669828857,-500.0,0.00024802,7]
[394529704,1763669828883,-151.0,0.00024802,7]
[394529705,1763669828909,-151.0,0.00024802,7]
[394529706,1763669828935,-151.0,0.00024802,7]
[394529707,1763669828961,-151.0,0.00024802,7]
[394529708,1763669828986,-38000.0,0.00024811,7]
[394529709,1763669829015,-38000.0,0.0002482,7]
[394529710,1763669829041,-38000.0,0.00024828,7]
[394529711,1763669829066,-38000.0,0.00024837,7]
[394529712,1763669829094,-4270.53,0.00024872,7]
[394529713,1763669829119,-151.0,0.000249,7]
[394529714,1763669829145,-152.850876,0.000249,7]
[394529715,1763669829170,-151.0,0.000249,7]
[394529716,1763669829197,-183.005852,0.000249,7]
[394529717,1763669829223,-943.9277601,0.00024918,7]
[394529718,1763669829249,-151.0,0.00025,7]
[394529719,1763669829279,-151.0,0.00025,7]
[394529720,1763669829307,-151.0,0.00025,7]
[394529721,1763669829334,-151.0,0.00025,7]
[394529722,1763669829362,-151.0,0.00025,7]
[394529723,1763669829387,-151.0,0.00025,7]
[394529724,1763669829413,-151.0,0.00025,7]
[394529725,1763669829438,-500.0,0.00025,7]
[394529726,1763669829462,-151.0,0.00025,7]
[394529727,1763669829487,-500.0,0.00025,7]
[394529728,1763669829512,-500.0,0.00025,7]
[394529729,1763669829539,-500.0,0.00025,7]
[394529730,1763669829563,-151.0,0.00025,7]
[394529731,1763669829588,-151.0,0.00025,7]
[394529732,1763669829613,-151.0,0.00025,7]
[394529733,1763669829638,-283.696208,0.00025,7]
[394529734,1763669829663,-576.79125785,0.000252,5]
[394529735,1763669829689,-2000.0,0.00025714,7]
[394529736,1763669829714,-160.823588,0.00025718,7]
[394529737,1763669829740,-261.69,0.00026,14]
[394529738,1763669829765,-271.55253996,0.00026008,30]
[394529739,1763669829793,-183.005852,0.00026712,7]
[394529740,1763669829819,-2038.44,0.000269,7]
[394529741,1763669829847,-151.0,0.00027397,7]
[394529742,1763669829872,-151.0,0.00027397,7]
[394529743,1763669829897,-150.0,0.00027397,5]
[394529744,1763669829921,-150.0,0.00027397,5]
[394529745,1763669829946,-150.0,0.00027397,5]
[394529746,1763669829971,-859.88681939,0.00027512,5]
[394529747,1763669829995,-250.0,0.00027945,5]
[394529748,1763669830020,-250.0,0.00027945,5]
[394529749,1763669830044,-250.0,0.00027945,5]
[394529750,1763669830146,-199.6,0.00027964,30]
[394529751,1763669830170,-350.0,0.00028493,5]
[394529752,1763669830195,-350.0,0.00028493,5]
[394529753,1763669830219,-350.0,0.00028493,5]
[394529754,1763669830244,-183.005852,0.00028524,7]
[394529755,1763669830273,-399.19,0.00028646,30]
[394529756,1763669830298,-450.0,0.00029041,5]
[394529757,1763669830326,-450.0,0.00029041,5]
[394529758,1763669830350,-450.0,0.00029041,5]
[394529759,1763669830377,-598.79,0.00029328,30]
[394529760,1763669830401,-550.0,0.00029589,5]
[394529761,1763669830429,-550.0,0.00029589,5]
[394529762,1763669830455,-550.0,0.00029589,5]
[394529763,1763669830480,-2038.44,0.000296,7]
[394529764,1763669830507,-798.39,0.0003001,30]
[394529765,1763669830533,-166.0,0.00030137,14]
[394529766,1763669830560,-650.0,0.00030137,5]
[394529767,1763669830588,-650.0,0.00030137,5]
[394529768,1763669830613,-301.53425214,0.00030137,5]
[394529769,1763669830639,-261.69,0.000302,14]
[394529770,1763669830665,-183.005852,0.00030336,7]
[394529771,1763669830694,-151.0,0.000304,31]
[394529772,1763669830721,-151.0,0.000304,31]
[394529773,1763669830748,-151.0,0.000304,31]
[394529774,1763669830774,-270.809412,0.000304,31]
[394529775,1763669830799,-151.0,0.000304,31]
[394529776,1763669830826,-151.0,0.000304,31]
[394529777,1763669830851,-750.0,0.00030685,5]
[394529778,1763669830876,-750.0,0.00030685,5]
[394529779,1763669830901,-997.98,0.00030692,30]
[394529780,1763669830930,-850.0,0.00031233,5]
[394529781,1763669830955,-850.0,0.00031233,5]
[394529782,1763669830981,-1197.58,0.00031374,30]
[394529783,1763669831006,-2000.0,0.00031429,7]
[394529784,1763669831030,-950.0,0.00031781,5]
[394529785,1763669831057,-950.0,0.00031781,5]
[394529786,1763669831080,-1044.69,0.00032,30]
[394529787,1763669831105,-1397.18,0.00032056,30]
[394529788,1763669831129,-447.256,0.00032057,31]
[394529789,1763669831155,-2038.44,0.000321,7]
[394529790,1763669831180,-154.95190618,0.00032123,10]
[394529791,1763669831204,-193.98,0.00032145,14]
[394529792,1763669831230,-183.005852,0.00032148,7]
[394529793,1763669831255,-1044.69,0.0003218,30]
[394529794,1763669831284,-1050.0,0.00032329,5]
[394529795,1763669831309,-764.33158909,0.00032329,5]
[394529796,1763669831333,-1044.69,0.0003236,30]
[394529797,1763669831360,-1044.69,0.0003254,30]
[394529798,1763669831386,-605.63666042,0.00032706,30]
[394529799,1763669831410,-1044.69,0.0003272,30]
[394529800,1763669831437,-1596.77,0.00032738,30]
[394529801,1763669831466,-5727.5,0.00032877,10]
[394529802,1763669831491,-11127.58,0.00032877,10]
[394529803,1763669831517,-9272.99,0.00032877,10]
[394529804,1763669831541,-205.76658468,0.00032877,5]
[394529805,1763669831566,-1044.69,0.000329,30]
[394529806,1763669831594,-187.904655,0.00033,31]
[394529807,1763669831620,-10000.0,0.00033,60]
[394529808,1763669831646,-224.341349,0.00033,31]
[394529809,1763669831672,-151.0,0.00033,31]
[394529810,1763669831704,-190.097997,0.00033,31]
[394529811,1763669831730,-151.0,0.00033,31]
[394529812,1763669831757,-500.0,0.00033,31]
[394529813,1763669831781,-189.406888,0.00033,7]
[394529814,1763669831806,-500.0,0.00033,31]
[394529815,1763669831834,-500.0,0.00033,31]
[394529816,1763669831860,-500.0,0.00033,31]
[394529817,1763669831887,-151.0,0.00033,31]
[394529818,1763669831917,-151.0,0.00033,31]
[394529819,1763669832022,-151.0,0.00033,31]
[394529820,1763669832047,-1044.69,0.0003308,30]
[394529821,1763669832072,-159.54053813,0.00033117,10]
[394529822,1763669832100,-169.8994602,0.00033117,10]
[394529823,1763669832125,-1044.69,0.0003326,30]
[394529824,1763669832149,-445.68770448,0.00033275,120]
[394529825,1763669832175,-1796.37,0.0003342,30]
[394529826,1763669832200,-1044.69,0.0003344,30]
[394529827,1763669832226,-261.69,0.000338,30]
[394529828,1763669832252,-2038.44,0.000338,7]
[394529829,1763669832282,-507.51170353,0.00033981,7]
[394529830,1763669832309,-1995.96159536,0.00034102,30]
[394529831,1763669832334,-500.0,0.00034413,7]
[394529832,1763669832360,-158.0,0.00034521,14]
[394529833,1763669832384,-500.0,0.00034527,7]
[394529834,1763669832411,-2921.85,0.000348,14]
[394529835,1763669832437,-500.0,0.00034824,7]
[394529836,1763669832462,-155.0,0.00035,120]
[394529837,1763669832488,-474.33905691,0.00035275,120]
[394529838,1763669832514,-500.0,0.00035601,30]
[394529839,1763669832539,-525.68177255,0.00035616,7]
[394529840,1763669832565,-500.0,0.00035616,7]
[394529841,1763669832593,-500.0,0.00035616,7]
[394529842,1763669832619,-226.59080261,0.00035616,7]
[394529843,1763669832645,-3570.126351,0.00035616,31]
[394529844,1763669832672,-3570.126351,0.00035616,31]
[394529845,1763669832699,-3570.126351,0.00035616,31]
[394529846,1763669832727,-3570.126351,0.00035616,31]
[394529847,1763669832754,-3570.126351,0.00035616,31]
[394529848,1763669832781,-3570.126351,0.00035616,31]
[394529849,1763669832808,-3570.126351,0.00035616,31]
[394529850,1763669832833,-3570.126351,0.00035616,31]
[394529851,1763669832859,-3570.126351,0.00035616,31]
[394529852,1763669832886,-3570.126351,0.00035616,31]
[394529853,1763669832911,-3570.126351,0.00035616,31]
[394529854,1763669832936,-3570.126351,0.00035616,31]
[394529855,1763669832961,-154.027752,0.000357,7]
[394529856,1763669832987,-2998.83062112,0.000359,15]
[394529857,1763669833011,-2038.44,0.000359,7]
[394529858,1763669833037,-9404.0,0.000368,120]
[394529859,1763669833061,-992.02446398,0.00036986,15]
[394529860,1763669833088,-992.02446398,0.00036986,15]
[394529861,1763669833114,-992.02446398,0.00036986,15]
[394529862,1763669833139,-992.02446398,0.00036986,15]
[394529863,1763669833164,-992.02446398,0.00036986,15]
[394529864,1763669833188,-992.02446398,0.00036986,15]
[394529865,1763669833215,-992.02446398,0.00036986,15]
[394529866,1763669833240,-992.02446398,0.00036986,15]
[394529867,1763669833266,-992.02446398,0.00036986,15]
[394529868,1763669833293,-992.02446398,0.00036986,15]
[394529869,1763669833320,-992.02446398,0.00036986,15]
[394529870,1763669833349,-992.02446398,0.00036986,15]
[394529871,1763669833375,-992.02446398,0.00036986,15]
[394529872,1763669833400,-992.02446398,0.00036986,15]
[394529873,1763669833425,-992.02446398,0.00036986,15]
[394529874,1763669833451,-992.02446398,0.00036986,15]
[394529875,1763669833475,-992.02446398,0.00036986,15]
[394529876,1763669833501,-992.02446398,0.00036986,15]
[394529877,1763669833526,-992.02446398,0.00036986,15]
[394529878,1763669833553,-992.02446398,0.00036986,15]
[394529879,1763669833585,-992.02446398,0.00036986,15]
[394529880,1763669833613,-992.02446398,0.00036986,15]
[394529881,1763669833641,-992.02446398,0.00036986,15]
[394529882,1763669833669,-992.02446398,0.00036986,15]
[394529883,1763669833697,-992.02446398,0.00036986,15]
[394529884,1763669833722,-992.02446398,0.00036986,15]
[394529885,1763669833747,-992.02446398,0.00036986,15]
[394529886,1763669833774,-992.02446398,0.00036986,15]
[394529887,1763669833801,-992.02446398,0.00036986,15]
[394529888,1763669833830,-992.02446398,0.00036986,15]
[394529889,1763669833856,-992.02446398,0.00036986,15]
[394529890,1763669833885,-992.02446398,0.00036986,15]
[394529891,1763669833916,-992.02446398,0.00036986,15]
[394529892,1763669833943,-992.02446398,0.00036986,15]
[394529893,1763669833969,-992.02446398,0.00036986,15]
[394529894,1763669833993,-992.02446398,0.00036986,15]
[394529895,1763669834019,-992.02446398,0.00036986,15]
[394529896,1763669834043,-992.02446398,0.00036986,15]
[394529897,1763669834067,-992.02446398,0.00036986,15]
[394529898,1763669834095,-992.02446398,0.00036986,15]
[394529899,1763669834120,-992.02446398,0.00036986,15]
[394529900,1763669834143,-992.02446398,0.00036986,15]
[394529901,1763669834168,-992.02446398,0.00036986,15]
[394529902,1763669834193,-992.02446398,0.00036986,15]
[394529903,1763669834218,-992.02446398,0.00036986,15]
[394529904,1763669834244,-992.02446398,0.00036986,15]
[394529905,1763669834272,-992.02446398,0.00036986,15]
[394529906,1763669834298,-992.02446398,0.00036986,15]
[394529907,1763669834325,-992.02446398,0.00036986,15]
[394529908,1763669834351,-992.02446398,0.00036986,15]
[394529909,1763669834376,-992.02446398,0.00036986,15]
[394529910,1763669834402,-992.02446398,0.00036986,15]
[394529911,1763669834428,-992.02446398,0.00036986,15]
[394529912,1763669834573,-992.02446398,0.00036986,15]
[394529913,1763669834600,-992.02446398,0.00036986,15]
[394529914,1763669834627,-992.02446398,0.00036986,15]
[394529915,1763669834654,-992.02446398,0.00036986,15]
[394529916,1763669834680,-992.02446398,0.00036986,15]
[394529917,1763669834708,-992.02446398,0.00036986,15]
[394529918,1763669834734,-992.02446398,0.00036986,15]
[394529919,1763669834759,-992.02446398,0.00036986,15]
[394529920,1763669834784,-992.02446398,0.00036986,15]
[394529921,1763669834808,-992.02446398,0.00036986,15]
[394529922,1763669834832,-992.02446398,0.00036986,15]
[394529923,1763669834857,-992.02446398,0.00036986,15]
[394529924,1763669834882,-177.14674944,0.00036986,15]
[394529925,1763669843917,-151.0,0.000248,7]
[394529926,1763669843946,-151.0,0.00024802,7]
[394529927,1763669843974,-151.0,0.00025,7]
[394529928,1763669844011,-6439.57,0.00032877,10]
[394529929,1763669844040,-814.87771454,0.00036986,15]
[394529930,1763669844066,-992.02446398,0.00036986,15]
[394529931,1763669844092,-992.02446398,0.00036986,15]
[394529932,1763669844119,-992.02446398,0.00036986,15]
[394529933,1763669844146,-992.02446398,0.00036986,15]
[394529934,1763669844172,-992.02446398,0.00036986,15]
[394529935,1763669844198,-992.02446398,0.00036986,15]
[394529936,1763669844224,-1010.96299885,0.00036986,15]
[394529937,1763669844250,-1010.96299885,0.00036986,15]
[394529938,1763669844278,-1010.96299885,0.00036986,15]
[394529939,1763669844305,-1010.96299885,0.00036986,15]
[394529940,1763669844331,-1010.96299885,0.00036986,15]
[394529941,1763669844358,-1010.96299885,0.00036986,15]
[394529942,1763669844384,-1010.96299885,0.00036986,15]
[394529943,1763669844409,-1460.27988723,0.00036986,15]
[394529944,1763669844434,-1010.96299885,0.00036986,15]
[394529945,1763669844459,-1010.96299885,0.00036986,15]
[394529946,1763669844484,-1010.96299885,0.00036986,15]
[394529947,1763669844515,-1010.96299885,0.00036986,15]
[394529948,1763669844548,-1010.96299885,0.00036986,15]
[394529949,1763669844573,-1010.96299885,0.00036986,15]
[394529950,1763669844599,-1010.96299885,0.00036986,15]
[394529951,1763669844624,-1010.96299885,0.00036986,15]
[394529952,1763669844650,-1010.96299885,0.00036986,15]
[394529953,1763669844674,-1010.96299885,0.00036986,15]
[394529954,1763669844700,-1010.96299885,0.00036986,15]
[394529955,1763669844725,-1010.96299885,0.00036986,15]
[394529956,1763669844749,-1010.96299885,0.00036986,15]
[394529957,1763669844773,-1010.96299885,0.00036986,15]
[394529958,1763669844798,-1010.96299885,0.00036986,15]
[394529959,1763669844822,-1010.96299885,0.00036986,15]
[394529960,1763669844847,-1010.96299885,0.00036986,15]
[394529961,1763669844870,-1010.96299885,0.00036986,15]
[394529962,1763669844895,-1010.96299885,0.00036986,15]
[394529963,1763669844921,-1460.27988718,0.00036986,15]
[394529964,1763669844944,-300.0,0.00036986,5]
[394529965,1763669844969,-2000.0,0.00037143,7]
[394529966,1763669844993,-600.0,0.0003726,5]
[394529967,1763669845018,-155.0,0.000373,120]
[394529968,1763669845042,-191.1437277,0.00037534,5]
[394529969,1763669845067,-160.823588,0.00037536,50]
[394529970,1763669845092,-261.69,0.000376,30]
[394529971,1763669845120,-151.0,0.000377,31]
[394529972,1763669845145,-151.0,0.000377,31]
[394529973,1763669845170,-151.0,0.000377,31]
[394529974,1763669845194,-1000.0,0.0003771,10]
[394529975,1763669845218,-2921.85,0.000378,14]
[394529976,1763669845243,-1000.0,0.00037847,10]
[394529977,1763669845364,-2038.44,0.000379,7]
[394529978,1763669845389,-1000.0,0.00037984,10]
[394529979,1763669845413,-165.0,0.00038,30]
[394529980,1763669845436,-1000.0,0.00038121,10]
[394529981,1763669845461,-1000.0,0.00038258,10]
[394529982,1763669845486,-1000.0,0.00038395,10]
[394529983,1763669845510,-1000.0,0.00038532,10]
[394529984,1763669845534,-1000.0,0.00038668,10]
[394529985,1763669845558,-1000.0,0.00038805,10]
[394529986,1763669845582,-166.0,0.00038852,14]
[394529987,1763669845606,-166.0,0.00038852,14]
[394529988,1763669845631,-162.0,0.00038852,14]
[394529989,1763669845655,-162.0,0.00038852,14]
[394529990,1763669845678,-162.0,0.00038852,14]
[394529991,1763669845701,-162.0,0.00038852,14]
[394529992,1763669845725,-162.0,0.00038852,14]
[394529993,1763669845748,-162.0,0.00038852,14]
[394529994,1763669845772,-162.0,0.00038852,14]
[394529995,1763669845795,-166.0,0.00038852,14]
[394529996,1763669845819,-333.0,0.00038852,14]
[394529997,1763669845842,-333.0,0.00038852,14]
[394529998,1763669845866,-166.0,0.00038852,14]
[394529999,1763669845890,-166.0,0.00038852,14]
[394530000,1763669845914,-166.0,0.00038852,14]
[394530001,1763669845937,-179.73040439,0.00038869,20]
[394530002,1763669845960,-500.0,0.00038941,30]
[394530003,1763669845988,-1000.0,0.00038942,10]
[394530004,1763669846012,-3570.126351,0.00038998,120]
[394530005,1763669846036,-3570.126351,0.00038998,120]
[394530006,1763669846060,-3570.126351,0.00038998,120]
[394530007,1763669846087,-3570.126351,0.00038998,120]
[394530008,1763669846112,-151.0,0.00038998,120]
[394530009,1763669846136,-500.0,0.00038998,120]
[394530010,1763669846161,-500.0,0.00038998,120]
[394530011,1763669846186,-500.0,0.00038998,120]
[394530012,1763669846211,-500.0,0.00038998,120]
[394530013,1763669846236,-151.0,0.00038998,120]
[394530014,1763669846261,-151.0,0.00038998,120]
[394530015,1763669846291,-151.0,0.00038998,120]
[394530016,1763669846317,-4200.0,0.00039,10]
[394530017,1763669846343,-1000.0,0.00039079,10]
[394530018,1763669846371,-183.005852,0.000391,50]
[394530019,1763669846396,-183.005852,0.00039101,50]
[394530020,1763669846420,-183.005852,0.00039102,50]
[394530021,1763669846446,-183.005852,0.00039103,50]
[394530022,1763669846472,-183.005852,0.00039104,50]
[394530023,1763669846498,-165.84926,0.00039104,50]
[394530024,1763669846528,-500.0,0.0003918,14]
[394530025,1763669846553,-500.0,0.0003918,14]
[394530026,1763669846577,-250.0,0.000392,10]
[394530027,1763669846603,-1000.0,0.00039216,10]
[394530028,1763669846627,-190.0,0.00039296,5]
[394530029,1763669846651,-250.0,0.000393,10]
[394530030,1763669846675,-1000.0,0.00039353,10]
[394530031,1763669846699,-250.0,0.000394,10]
[394530032,1763669846724,-1000.0,0.0003949,10]
[394530033,1763669846748,-250.0,0.000395,10]
[394530034,1763669846771,-250.0,0.000396,10]
[394530035,1763669846795,-1000.0,0.00039627,10]
[394530036,1763669846820,-2921.85,0.000397,14]
[394530037,1763669846844,-250.0,0.000397,10]
[394530038,1763669846869,-155.0,0.000397,120]
[394530039,1763669846893,-1000.0,0.00039764,10]
[394530040,1763669846919,-261.69,0.000398,30]
[394530041,1763669846943,-441.545034,0.000398,10]
[394530042,1763669846967,-500.0,0.00039869,30]
[394530043,1763669846992,-1000.0,0.00039901,10]
[394530044,1763669847016,-500.0,0.00039946,30]
[394530045,1763669847039,-151.0,0.0004,7]
[394530046,1763669847062,-151.0,0.0004,7]
[394530047,1763669847087,-151.0,0.0004,7]
[394530048,1763669847110,-151.0,0.0004,7]
[394530049,1763669847134,-160.943993,0.0004,7]
[394530050,1763669847157,-1000.0,0.00040038,10]
[394530051,1763669847182,-617.59581906,0.00040101,120]
[394530052,1763669847206,-1000.0,0.00040175,10]
[394530053,1763669847229,-1000.0,0.00040312,10]
[394530054,1763669847255,-1000.0,0.00040449,10]
[394530055,1763669847285,-500.0,0.00040826,30]
[394530056,1763669847310,-3956.85697878,0.00040936,28]
[394530057,1763669847337,-500.0,0.00041096,31]
[394530058,1763669847364,-500.0,0.00041096,31]
[394530059,1763669847390,-500.0,0.00041096,31]
[394530060,1763669847415,-528.0752912,0.00041096,31]
[394530061,1763669847439,-225.34169902,0.00041096,31]
[394530062,1763669847464,-500.0,0.00041173,30]
[394530063,1763669847488,-600.0,0.00041413,30]
[394530064,1763669847640,-2000.0,0.00042,120]
[394530065,1763669847668,-155.0,0.00042,120]
[394530066,1763669847695,-646.2471715,0.00042101,120]
[394530067,1763669847720,-160.0,0.00042375,5]
[394530068,1763669847745,-2000.0,0.00042857,21]
[394530069,1763669847771,-2038.44,0.00043,14]